[Event "Tirnavia Reti Memorial-GM 2022"]
[Site "Trnava"]
[Date "2022.08.17"]
[Round "8.2"]
[White "Stevik, Patrik"]
[Black "Pacher, Milan"]
[Result "0-1"]
[ECO "D37"]
[WhiteElo "2126"]
[BlackElo "2399"]
[Annotator "TA"]
[PlyCount "106"]
[EventDate "2022.08.10"]
[EventType "tourn"]
[EventCountry "SVK"]
[SourceTitle "playchess.com"]
[Source "ChessBase"]
[SourceQuality "1"]
[TimeControl "40/5400+30:1800+30"]

{[%evp 9,106,18,23,27,25,12,32,32,29,26,29,0,35,37,39,24,4,4,31,7,9,30,16,9,20,16,18,-7,14,-6,-14,-29,-41,-66,-32,-61,-41,-47,-28,-48,-16,-58,-40,-121,-65,-68,-55,-59,-53,-50,-39,-39,-45,-46,-45,-50,-45,-60,-37,-40,-36,-43,-34,-71,-67,-50,0,0,0,0,401,0,0,-229,-202,-293,-257,-384,-400,-439,-590,-581,-579,-570,-556,-501,-513,-918,-814,-946,-688,-629,-520,-696,-542,-2427,-2174,-2938,-2553]} 1. d4 {[%emt 0:00:07]} d5 {[%emt 0:01:43]} 2. c4 {[%emt 0:00:07]} e6 {[%emt 0:00:04]} 3. Nf3 {[%emt 0:00:11]} a6 {[%emt 0:00:11]} 4. cxd5 {[%emt 0:00:32]} exd5 {[%emt 0:00:03]} 5. Nc3 {[%emt 0:00:27]} Nf6 {[%emt 0:00:05]} 6. Bg5 {[%emt 0:00:22] D37: Queen's Gambit Declined: 5 Bf4.} Be6 {[%emt 0:00:06]} 7. e3 {[%emt 0:01:59]} Nbd7 {[%emt 0:00:03]} (7... h6 $5 {[%cal Rh6g5]} 8. Bxf6 gxf6 $14) 8. Bd3 {[%emt 0:00:47] White is slightly better.} Bd6 {[%emt 0:00:14]} 9. O-O {[%emt 0:00:55]} O-O {[%emt 0:00:05]} 10. Rc1 {[%emt 0:01:11]} Re8 {[%emt 0:03:14]} 11. Qc2 {[%emt 0:02:09][%cal Od3h7]} h6 {[%emt 0:01:18]} 12. Bh4 {[%emt 0:00:20] [#]} Rc8 $146 {[%emt 0:01:31]} ({Predecessor:} 12... c6 13. a3 Qb8 14. Bg3 Bxg3 15. hxg3 a5 16. Rfe1 Qd6 17. Rb1 Bg4 18. Nd2 Nb6 19. Qb3 Nbd7 20. Qc2 Nb6 21. Qb3 Nbd7 22. Qc2 Nb6 23. Qb3 Nbd7 24. Qc2 {½-½ (24) Bu,X (2705)-Riazantsev,A (2671) Doha 2016}) 13. Rfe1 {[%emt 0:07:54]} c5 {[%emt 0:01:12]} 14. Bh7+ {[%emt 0:10:15]} Kh8 {[%emt 0:00:29] Threatens to win with ...g5.} 15. Bf5 {[%emt 0:00:38]} b5 {[%emt 0:06:00][%cal Bb7b5,Bb5b4][%mdl 32]} 16. Bxe6 {[%emt 0:06:28]} fxe6 {[%emt 0:00:05]} 17. dxc5 {[%emt 0:03:25]} (17. Qg6 {with more complications.} c4 18. a3 Kg8 19. e4) 17... Bxc5 {[%emt 0:02:43]} 18. Qb3 {[%emt 0:06:11]} Qb6 {[%emt 0:03:47]} 19. Rcd1 {[%emt 0:03:20]} Bd6 {[%emt 0:11:03]} 20. Rd4 {[%emt 0:03:56] Inhibits Ne4.} b4 {[%emt 0:02:40]} 21. Na4 {[%emt 0:02:41]} Qb5 {[%emt 0:01:50] Black is more active.} 22. Bg3 {[%emt 0:02:28]} e5 {[%emt 0:03:19]} 23. Rdd1 {[%emt 0:01:08]} Bf8 {[%emt 0:04:16]} 24. Nh4 {[%emt 0:02:17]} Kh7 {[%emt 0:01:01]} 25. e4 {[%emt 0:10:38][%cal Re4d5]} d4 {[%emt 0:02:42]} 26. Rd3 {[%emt 0:03:32] [#]} (26. h3 $15) 26... Qc4 {[%emt 0:04:34]} ({Better is} 26... Qc6 $1 $17 27. f3 Qc2) 27. Nf3 $15 {[%emt 0:05:53][%cal Bh4f3,Bf3d2,Bd2c4][%mdl 32]} Qxb3 {[%emt 0:01:19]} 28. axb3 {[%emt 0:00:03]} Rc6 {[%emt 0:02:46]} 29. Nd2 {[%emt 0:01:28]} Bd6 {[%emt 0:00:37]} 30. Nc4 {[%emt 0:00:45]} Bc7 {[%emt 0:00:02]} 31. f3 {[%emt 0:02:18]} g5 {[%emt 0:00:41][%cal Bg7g5,Bg5g4][%mdl 32]} 32. Red1 {[%emt 0:02:58]} g4 {[%emt 0:01:28]} 33. Bh4 {[%emt 0:01:36]} Kg6 {[%emt 0:10:37]} 34. Re1 {[%emt 0:08:14]} h5 {[%emt 0:02:49]} 35. h3 {[%emt 0:01:43]} gxh3 {[%emt 0:00:35]} 36. g3 {[%emt 0:01:42]} Nh7 {[%emt 0:01:23]} 37. Kh2 {[%emt 0:01:46]} Ndf8 {[%emt 0:01:00]} (37... Nhf8 $15) 38. Kxh3 {[%emt 0:00:43]} Ne6 {[%emt 0:00:04]} 39. Rc1 {[%emt 0:01:19][%cal Oc4e5]} Rc8 $2 {[%emt 0:01:33][%mdl 8192] [#]} (39... Kh6 $11) 40. Be7 $2 {[%emt 0:03:39]} (40. Nab6 $1 $18 {[%cal Rb6c8][%mdl 512]} Rxb6 41. Nxb6) 40... Nhg5+ {[%emt 0:00:59]} 41. Kh4 $2 {[%emt 0:03:46]} (41. Kg2 $11) 41... Kh6 $19 {[%emt 0:03:48]} 42. Rf1 {[%emt 0:01:09]} (42. g4 $142) 42... Re8 {[%emt 0:05:28]} 43. Bf6 {[%emt 0:07:30]} (43. Bxb4 $142 Nf8 44. Bxf8+ Rxf8 45. Rdd1) 43... Rf8 {[%emt 0:00:52] Dancing on a razor blade.} 44. Bxe5 {[%emt 0:01:15] [#]} Rxc4 {[%emt 0:00:07][%mdl 576] Remove Defender. Black is clearly winning.} 45. bxc4 {[%emt 0:01:34] And now Bxc7 would win.} Bxe5 {[%emt 0:00:04]} 46. f4 {[%emt 0:00:41]} Nxe4 {[%emt 0:00:29]} 47. Kh3 {[%emt 0:01:55]} Bf6 {[%emt 0:02:23]} 48. Re1 {[%emt 0:01:02]} (48. Rff3 $142 Rg8 49. Nb6) 48... Nf2+ {[%emt 0:00:09]} 49. Kg2 {[%emt 0:00:04]} Nxd3 {[%emt 0:00:03]} 50. Rxe6 {[%emt 0:00:05]} a5 {[%emt 0:01:15]} 51. Ra6 {[%emt 0:00:24]} h4 {[%emt 0:00:20][%cal Bh5h4,Bh4g3][%mdl 32]} 52. Rxa5 {[%emt 0:00:23]} Rg8 {[%emt 0:00:06][%csl LRf4,LRg3]} 53. Kf3 {[%emt 0:00:17]} hxg3 {[%emt 0:00:47] Weighted Error Value: White=0.73/Black=0.41} 0-1

[Event "Tirnavia Reti Memorial-GM 2022"]
[Site "Trnava"]
[Date "2022.08.17"]
[Round "8.3"]
[White "Sahidi, Samir"]
[Black "Pechac, Jergus"]
[Result "0-1"]
[ECO "C42"]
[WhiteElo "2462"]
[BlackElo "2594"]
[Annotator "RC"]
[PlyCount "129"]
[EventDate "2022.08.10"]
[EventType "tourn"]
[EventCountry "SVK"]
[SourceTitle "playchess.com"]
[Source "ChessBase"]
[SourceQuality "1"]
[TimeControl "40/5400+30:1800+30"]

1. e4 {[%emt 0:00:23]} e5 {[%emt 0:01:59]} 2. Nf3 {[%emt 0:00:00]} Nf6 {[%emt 0:01:39]} 3. Nxe5 {[%emt 0:02:15]} d6 {[%emt 0:00:08]} 4. Nf3 {[%emt 0:01:21]} Nxe4 {[%emt 0:00:07]} 5. Nc3 {[%emt 0:03:28]} Nxc3 {[%emt 0:00:15]} 6. dxc3 {[%emt 0:00:06]} Be7 {[%emt 0:00:07]} 7. Be3 {[%emt 0:02:39]} O-O {[%emt 0:00:21]} 8. Qd2 {[%emt 0:01:34]} Nd7 {[%emt 0:00:09]} 9. O-O-O {[%emt 0:01:57]} Nf6 {[%emt 0:00:14]} 10. Bd3 {[%emt 0:03:07]} Re8 {[%emt 0:02:23]} 11. h3 {[%emt 0:01:47]} d5 {[%emt 0:05:48]} 12. g4 {[%emt 0:02:30]} c6 {[%emt 0:02:16]} 13. Kb1 {[%emt 0:05:36]} Ne4 {[%emt 0:04:34]} 14. Bxe4 {[%emt 0:05:35]} dxe4 {[%emt 0:00:15]} 15. Qe2 {[%emt 0:07:39]} Qc7 {[%emt 0:07:11]} 16. Nd2 {[%emt 0:05:52]} Bf8 {[%emt 0:02:18]} 17. h4 {[%emt 0:03:08]} Be6 {[%emt 0:02:07]} 18. g5 {[%emt 0:03:04]} a6 {[%emt 0:11:17]} 19. h5 {[%emt 0:07:40]} Qa5 {[%emt 0:00:06]} 20. c4 {[%emt 0:03:14]} b5 {[%emt 0:01:48]} 21. h6 {[%emt 0:07:53]} bxc4 {[%emt 0:00:55]} 22. Bd4 {[%emt 0:00:45]} Rab8 {[%emt 0:07:32]} 23. Qe3 {[%emt 0:06:22]} c3 {[%emt 0:35:17]} 24. Nb3 {[%emt 0:00:45]} Bxb3 {[%emt 0:00:02]} 25. cxb3 {[%emt 0:02:13]} Qf5 {[%emt 0:01:30]} 26. bxc3 {[%emt 0:05:02]} Rbd8 {[%emt 0:01:13]} 27. Kb2 {[%emt 0:02:39]} Be7 {[%emt 0:04:17]} 28. Rhg1 {[%emt 0:09:00]} g6 {[%emt 0:01:38]} 29. Qg3 {[%emt 0:01:06]} Rd5 {[%emt 0:01:48]} 30. Be3 {[%emt 0:00:27]} Rc8 {[%emt 0:02:50]} 31. Qf4 {[%emt 0:02:12]} Qxf4 {[%emt 0:00:36]} 32. Bxf4 {[%emt 0:00:07]} f6 {[%emt 0:00:13]} 33. gxf6 {[%emt 0:01:45]} Bxf6 {[%emt 0:00:03]} 34. Kc2 {[%emt 0:00:38]} Rcd8 {[%emt 0:00:59]} 35. Rde1 {[%emt 0:00:31]} Rd3 {[%emt 0:00:54]} 36. Rg3 {[%emt 0:00:13]} Re8 {[%emt 0:01:27]} 37. c4 {[%emt 0:01:59]} Kf7 {[%emt 0:00:05]} 38. Rg4 {[%emt 0:00:56]} Rc3+ {[%emt 0:02:09]} 39. Kb1 {[%emt 0:00:06]} Bd4 {[%emt 0:00:31]} 40. Bd6 {[%emt 0:02:15]} Rd3 {[%emt 0:00:58]} 41. Re2 {[%emt 0:04:40]} Bf6 {[%emt 0:02:51]} 42. Bf4 {[%emt 0:04:13]} g5 {[%emt 0:05:52]} 43. Bc1 {[%emt 0:02:34]} Rf3 {[%emt 0:01:54]} 44. Rd2 {[%emt 0:04:16]} Kg6 {[%emt 0:01:58]} 45. Rd6 {[%emt 0:03:46]} Rxf2 {[%emt 0:00:19]} 46. Rxg5+ {[%emt 0:00:17]} Kf7 {[%emt 0:00:07]} 47. Rg1 {[%emt 0:01:03]} e3 {[%emt 0:00:18]} 48. Rd7+ {[%emt 0:12:26]} Ke6 {[%emt 0:00:06]} 49. Rd3 {[%emt 0:00:31]} e2 {[%emt 0:00:06]} 50. Re1 {[%emt 0:01:10]} Kf5 {[%emt 0:00:23]} 51. Bd2 {[%emt 0:00:23]} Rf1 {[%emt 0:00:19]} 52. Rh3 {[%emt 0:00:10]} Kg4 {[%emt 0:00:19]} 53. Rh1 {[%emt 0:00:43]} Rxh1 {[%emt 0:00:12]} 54. Rxh1 {[%emt 0:00:03]} Bh4 {[%emt 0:00:49]} 55. Rg1+ {[%emt 0:00:12]} Kh5 {[%emt 0:00:41]} 56. Rg7 {[%emt 0:01:22]} e1=Q+ {[%emt 0:00:29]} 57. Bxe1 {[%emt 0:00:07]} Rxe1+ {[%emt 0:00:03]} 58. Kc2 {[%emt 0:00:05]} Re7 {[%emt 0:02:13]} 59. b4 {[%emt 0:00:42]} Kxh6 {[%emt 0:00:13]} 60. Rg2 {[%emt 0:00:39]} Re3 {[%emt 0:01:30]} 61. Rd2 {[%emt 0:01:04]} Be7 {[%emt 0:00:25]} 62. c5 {[%emt 0:00:38]} Kg5 {[%emt 0:02:12]} 63. Rg2+ {[%emt 0:00:34]} Kf5 {[%emt 0:00:25]} 64. Rh2 {[%emt 0:00:24]} Kg6 {[%emt 0:00:30]} 65. Rg2+ {[%emt 0:00:38]} 0-1

[Event "Tirnavia Reti Memorial-GM 2022"]
[Site "Trnava"]
[Date "2022.08.17"]
[Round "8.5"]
[White "Velicka, Petr"]
[Black "Czebe, Attila"]
[Result "1/2-1/2"]
[WhiteElo "2384"]
[BlackElo "2385"]
[Annotator "TA"]
[PlyCount "31"]
[EventDate "2022.08.10"]
[EventType "tourn"]
[EventCountry "SVK"]
[SourceTitle "playchess.com"]
[Source "ChessBase"]
[SourceQuality "1"]
[TimeControl "40/5400+30:1800+30"]

{[%evp 14,15,19,19]} 1. e4 {[%emt 1:31:00]} e5 {[%emt 1:31:00]} 2. Nf3 {[%emt 0:00:30]} Nc6 {[%emt 0:00:30]} 3. Bb5 {[%emt 0:00:30]} Nf6 {[%emt 0:00:30]} 4. d3 {[%emt 0:00:30]} d6 {[%emt 0:00:30]} 5. c3 {[%emt 0:00:30]} g6 {[%emt 0:00:30]} 6. O-O {[%emt 0:00:30]} Bg7 {[%emt 0:00:30]} 7. Nbd2 {[%emt 0:00:30]} O-O {[%emt 0:00:30]} 8. h3 {[%emt 0:00:30] [#]} {Predecessor:} a6 $146 {C65: Ruy Lopez: Berlin Defence (3...Nf6), unusual lines and 4 0-0 Bc5.} 9. Ba4 b5 10. Bc2 Nb8 11. Re1 Nbd7 12. Nf1 Bb7 13. d4 exd4 14. cxd4 c5 15. Bf4 Qb6 16. Ng3 {½-½ (47) Lewicki,M (2404)-Aleksandrov,A (2589) Katowice 2017} 1/2-1/2

[Event "Tirnavia Reti Memorial-GM 2022"]
[Site "Trnava"]
[Date "2022.08.18"]
[Round "9.3"]
[White "Pechac, Jergus"]
[Black "Jablonicky, Martin"]
[Result "1-0"]
[ECO "C45"]
[WhiteElo "2594"]
[BlackElo "2343"]
[Annotator "RC"]
[PlyCount "45"]
[EventDate "2022.08.10"]
[EventType "tourn"]
[EventCountry "SVK"]
[SourceTitle "playchess.com"]
[Source "ChessBase"]
[SourceQuality "1"]
[TimeControl "40/5400+30:1800+30"]

1. e4 {[%emt 0:00:40]} e5 {[%emt 0:00:10]} 2. d4 {[%emt 0:00:28]} exd4 {[%emt 0:00:06]} 3. Nf3 {[%emt 0:00:07]} Nc6 {[%emt 0:00:24]} 4. Nxd4 {[%emt 0:00:06]} Nf6 {[%emt 0:00:11]} 5. Nxc6 {[%emt 0:00:25]} bxc6 {[%emt 0:00:04]} 6. Bd3 {[%emt 0:00:27]} d5 {[%emt 0:00:19]} 7. exd5 {[%emt 0:00:07]} cxd5 {[%emt 0:00:03]} 8. O-O {[%emt 0:00:12]} Be7 {[%emt 0:00:02]} 9. h3 {[%emt 0:00:38]} O-O {[%emt 0:00:05]} 10. Re1 {[%emt 0:00:06]} c5 {[%emt 0:00:48]} 11. b3 {[%emt 0:00:17]} Be6 {[%emt 0:00:15]} 12. Bb2 {[%emt 0:00:16]} Ne4 {[%emt 0:06:35]} 13. Nd2 {[%emt 0:10:25]} Nxd2 {[%emt 0:04:17]} 14. Qxd2 {[%emt 0:00:32]} Bf6 {[%emt 0:00:15]} 15. Be5 {[%emt 0:00:37]} a5 {[%emt 0:04:23]} 16. Qc3 {[%emt 0:04:15]} Bxe5 {[%emt 0:12:41]} 17. Rxe5 {[%emt 0:02:33]} Qb6 {[%emt 0:00:30]} 18. Rae1 {[%emt 0:00:30]} Qb4 {[%emt 0:00:30]} 19. Qa1 {[%emt 0:00:30]} a4 {[%emt 0:00:30]} 20. Rg5 {[%emt 0:01:47]} d4 {[%emt 0:00:17]} 21. Qc1 {[%emt 0:05:31]} h6 {[%emt 0:15:39]} 22. Rg3 {[%emt 0:01:03]} Kh8 {[%emt 0:02:54]} 23. Re5 {[%emt 0:00:51]} 1-0

[Event "Tirnavia Reti Memorial-GM 2022"]
[Site "Trnava"]
[Date "2022.08.18"]
[Round "9.4"]
[White "Pacher, Milan"]
[Black "Sahidi, Samir"]
[Result "0-1"]
[ECO "E46"]
[WhiteElo "2399"]
[BlackElo "2462"]
[Annotator "RC"]
[PlyCount "116"]
[EventDate "2022.08.10"]
[EventType "tourn"]
[EventCountry "SVK"]
[SourceTitle "playchess.com"]
[Source "ChessBase"]
[SourceQuality "1"]
[TimeControl "40/5400+30:1800+30"]

1. d4 {[%emt 0:00:08]} Nf6 {[%emt 0:00:23]} 2. c4 {[%emt 0:00:04]} e6 {[%emt 0:00:42]} 3. Nc3 {[%emt 0:00:05]} Bb4 {[%emt 0:01:19]} 4. e3 {[%emt 0:00:06]} O-O {[%emt 0:01:06]} 5. Nge2 {[%emt 0:00:05]} b6 {[%emt 0:01:50]} 6. a3 {[%emt 0:01:42]} Bxc3+ {[%emt 0:00:49]} 7. Nxc3 {[%emt 0:00:03]} c5 {[%emt 0:02:07]} 8. Bd3 {[%emt 0:05:04]} Nc6 {[%emt 0:09:17]} 9. O-O {[%emt 0:00:36]} d5 {[%emt 0:10:06]} 10. cxd5 {[%emt 0:02:42]} exd5 {[%emt 0:02:49]} 11. Qa4 {[%emt 0:01:49]} Bb7 {[%emt 0:06:06]} 12. Rd1 {[%emt 0:05:52]} Qe7 {[%emt 0:06:00]} 13. Ba6 {[%emt 0:15:58]} c4 {[%emt 0:07:24]} 14. e4 {[%emt 0:06:46]} Na5 {[%emt 0:07:43]} 15. Bxb7 {[%emt 0:01:22]} Qxb7 {[%emt 0:00:11]} 16. e5 {[%emt 0:01:20]} Ne8 {[%emt 0:02:35]} 17. Qc2 {[%emt 0:08:11]} Nc7 {[%emt 0:01:29]} 18. Rb1 {[%emt 0:00:03]} Nb3 {[%emt 0:00:31]} 19. Be3 {[%emt 0:01:02]} b5 {[%emt 0:01:00]} 20. f4 {[%emt 0:03:02]} f5 {[%emt 0:01:45]} 21. g4 {[%emt 0:00:54]} Qc8 {[%emt 0:02:44]} 22. Qg2 {[%emt 0:01:46]} Qd7 {[%emt 0:01:58]} 23. Kh1 {[%emt 0:01:56]} fxg4 {[%emt 0:02:02]} 24. Rg1 {[%emt 0:00:07]} a5 {[%emt 0:02:49]} 25. Rbf1 {[%emt 0:08:02]} g6 {[%emt 0:03:55]} 26. Ne2 {[%emt 0:05:13]} h5 {[%emt 0:08:21]} 27. h3 {[%emt 0:01:15]} Rf7 {[%emt 0:00:33]} 28. Rf2 {[%emt 0:01:43]} Raf8 {[%emt 0:00:44]} 29. hxg4 {[%emt 0:01:36]} Rh7 {[%emt 0:03:26]} 30. g5 {[%emt 0:06:07]} Rhf7 {[%emt 0:02:14]} 31. Ng3 {[%emt 0:03:02]} h4 {[%emt 0:00:44]} 32. Nf1 {[%emt 0:00:04]} Ne6 {[%emt 0:00:46]} 33. Nh2 {[%emt 0:00:42]} Nxf4 {[%emt 0:00:37]} 34. Bxf4 {[%emt 0:00:25]} Rxf4 {[%emt 0:00:09]} 35. Rxf4 {[%emt 0:00:04]} Rxf4 {[%emt 0:00:07]} 36. Ng4 {[%emt 0:00:05]} Qe6 {[%emt 0:02:37]} 37. Nf6+ {[%emt 0:00:10]} Kf7 {[%emt 0:01:28]} 38. Qh2 {[%emt 0:05:30]} Qf5 {[%emt 0:01:19]} 39. e6+ {[%emt 0:04:21]} Kxe6 {[%emt 0:00:48]} 40. Re1+ {[%emt 0:00:29]} Kf7 {[%emt 0:00:44]} 41. Qe2 {[%emt 0:32:11]} Qh3+ {[%emt 0:30:07]} 42. Kg1 {[%emt 0:00:30]} Qg3+ {[%emt 0:00:17]} 43. Kh1 {[%emt 0:00:00]} Qf3+ {[%emt 0:00:32]} 44. Qxf3 {[%emt 0:00:00]} Rxf3 {[%emt 0:00:08]} 45. Nxd5 {[%emt 0:00:00]} Nxd4 {[%emt 0:02:07]} 46. Re7+ {[%emt 0:00:27]} Kf8 {[%emt 0:00:05]} 47. Rb7 {[%emt 0:01:26]} Rf2 {[%emt 0:00:00]} 48. Kg1 {[%emt 0:00:00]} Rxb2 {[%emt 0:00:00]} 49. Nf4 {[%emt 0:00:00]} c3 {[%emt 0:00:00]} 50. Nxg6+ {[%emt 0:00:00]} Ke8 {[%emt 0:00:00]} 51. Rb8+ {[%emt 0:00:00]} Kd7 {[%emt 0:00:00]} 52. Ne5+ {[%emt 0:00:00]} Kc7 {[%emt 0:00:00]} 53. g6 {[%emt 0:00:00]} h3 {[%emt 0:00:00]} 54. Rh8 {[%emt 0:00:00]} Rg2+ {[%emt 0:00:00]} 55. Kf1 {[%emt 0:00:00]} c2 {[%emt 0:00:00]} 56. Nd3 {[%emt 0:00:00]} Rxg6 {[%emt 0:00:00]} 57. Rxh3 {[%emt 0:00:00]} Nb3 {[%emt 0:00:00]} 58. Rh7+ {[%emt 0:00:00]} Kb6 {[%emt 0:00:00]} 0-1

[Event "Tirnavia Reti Memorial-GM 2022"]
[Site "Trnava"]
[Date "2022.08.18"]
[Round "9.5"]
[White "Finek, Vaclav"]
[Black "Stevik, Patrik"]
[Result "1-0"]
[ECO "D70"]
[WhiteElo "2393"]
[BlackElo "2126"]
[Annotator "RC"]
[PlyCount "105"]
[EventDate "2022.08.10"]
[EventType "tourn"]
[EventCountry "SVK"]
[SourceTitle "playchess.com"]
[Source "ChessBase"]
[SourceQuality "1"]
[TimeControl "40/5400+30:1800+30"]

1. Nf3 {[%emt 0:00:05]} Nf6 {[%emt 0:00:09]} 2. d4 {[%emt 0:00:04]} d5 {[%emt 0:00:22]} 3. c4 {[%emt 0:00:05]} g6 {[%emt 0:01:46]} 4. cxd5 {[%emt 0:00:24]} Nxd5 {[%emt 0:00:11]} 5. e4 {[%emt 0:01:30]} Nb6 {[%emt 0:01:06]} 6. h3 {[%emt 0:01:18]} Bg7 {[%emt 0:00:16]} 7. Be2 {[%emt 0:03:46]} O-O {[%emt 0:01:45]} 8. Nc3 {[%emt 0:01:30]} Nc6 {[%emt 0:07:27]} 9. Be3 {[%emt 0:03:26]} Na5 {[%emt 0:04:02]} 10. O-O {[%emt 0:06:21]} Nac4 {[%emt 0:04:58]} 11. Bg5 {[%emt 0:04:48]} h6 {[%emt 0:01:01]} 12. Bf4 {[%emt 0:00:50]} c6 {[%emt 0:06:33]} 13. b3 {[%emt 0:03:10]} Nd6 {[%emt 0:01:03]} 14. Qd2 {[%emt 0:02:37]} g5 {[%emt 0:01:30]} 15. Bh2 {[%emt 0:00:42]} f5 {[%emt 0:00:16]} 16. exf5 {[%emt 0:01:33]} Bxf5 {[%emt 0:03:25]} 17. Ne5 {[%emt 0:04:00]} Nd5 {[%emt 0:04:34]} 18. Nxd5 {[%emt 0:02:23]} cxd5 {[%emt 0:00:45]} 19. Rac1 {[%emt 0:01:40]} Qb6 {[%emt 0:08:34]} 20. Bf3 {[%emt 0:05:53]} Ne4 {[%emt 0:03:47]} 21. Qe3 {[%emt 0:06:05]} Rac8 {[%emt 0:03:12]} 22. Bxe4 {[%emt 0:08:30]} dxe4 {[%emt 0:06:09]} 23. Rfd1 {[%emt 0:04:56]} Rxc1 {[%emt 0:03:43]} 24. Rxc1 {[%emt 0:01:31]} Rd8 {[%emt 0:02:25]} 25. Rd1 {[%emt 0:01:06]} Rd5 {[%emt 0:07:13]} 26. Rd2 {[%emt 0:03:55]} Qb4 {[%emt 0:05:01]} 27. Bg3 {[%emt 0:03:45]} Bf6 {[%emt 0:01:55]} 28. Nc4 {[%emt 0:02:29]} Qb5 {[%emt 0:03:36]} 29. Be5 {[%emt 0:01:21]} Bg6 {[%emt 0:03:12]} 30. Qc3 {[%emt 0:04:37]} Qc6 {[%emt 0:00:47]} 31. Bxf6 {[%emt 0:02:04]} exf6 {[%emt 0:01:12]} 32. Qb2 {[%emt 0:01:20]} Bf7 {[%emt 0:05:54]} 33. Ne3 {[%emt 0:01:09]} Rd7 {[%emt 0:00:05]} 34. Rc2 {[%emt 0:05:04]} Qb6 {[%emt 0:01:38]} 35. Rc5 {[%emt 0:02:31]} Kh7 {[%emt 0:00:53]} 36. Qc3 {[%emt 0:00:32]} Qd6 {[%emt 0:00:55]} 37. d5 {[%emt 0:01:22]} Bg6 {[%emt 0:00:54]} 38. Qd4 {[%emt 0:02:00]} h5 {[%emt 0:02:00]} 39. Nc4 {[%emt 0:02:43]} Qf4 {[%emt 0:00:36]} 40. Ne3 {[%emt 0:02:26]} a6 {[%emt 0:05:09]} 41. a4 {[%emt 0:34:33]} Qd6 {[%emt 0:04:27]} 42. b4 {[%emt 0:00:00]} Rg7 {[%emt 0:03:58]} 43. Rc8 {[%emt 0:00:00]} f5 {[%emt 0:04:24]} 44. Qc5 {[%emt 0:00:00]} Qf6 {[%emt 0:03:06]} 45. d6 {[%emt 0:00:00]} f4 {[%emt 0:00:42]} 46. Nd5 {[%emt 0:00:00]} Qa1+ {[%emt 0:00:41]} 47. Kh2 {[%emt 0:00:00]} Qe5 {[%emt 0:02:00]} 48. Ne7 {[%emt 0:00:00]} Qe6 {[%emt 0:02:18]} 49. Qxg5 {[%emt 0:00:00]} f3 {[%emt 0:06:57]} 50. Rh8+ {[%emt 0:00:00]} Kxh8 {[%emt 0:00:06]} 51. Qh6+ {[%emt 0:00:00]} Bh7 {[%emt 0:00:26]} 52. Qxe6 {[%emt 0:00:00]} Rxg2+ {[%emt 0:00:06]} 53. Kh1 {[%emt 0:00:00]} 1-0